{"text_format":"3","workbook":"xlsx","n_sheets":4,"sheets":["Algus","Väljaminekud","Sissetulekud","Kokkuvõte"],"not_rendered":{"charts":1,"defined_names":2},"read":"whole","date_system":"1900"}

{"sheet":"Algus","index":0,"n_rows":8,"n_cols":2,"rows_kept":8}
[null,"TEAVE SELLE MALLI KOHTA"]
[null,"Selle sündmuse eelarve töövihiku abil saate jälgida sündmusega seotud kulusid ja sellelt teenitud tulu."]
[null,"Täitke väli Sündmuse nimi ja sisestage üksikasjad töölehe Kulud ja töölehe Tulud tabelitesse."]
[null,"Kogukulu ja Sissetulekud kokku arvutatakse automaatselt."]
[null,"Kasumi ja kahjumi kokkuvõte ja diagrammi uuendatakse automaatselt kokkuvõte töölehel."]
[null,"Märkus. "]
[null,"Iga töölehe veerus A on toodud lisajuhised. See tekst on tahtlikult peidetud. Teksti eemaldamiseks valige veerg A ja seejärel käsk KUSTUTA. Teksti kuvamiseks valige veerg A ja muutke seejärel fondi värvi."]
[null,"Tabelite kohta lisateabe saamiseks vajutage tabelis tõstuklahvi (SHIFT) ja seejärel klahvi F10, valige TABEL suvand ja seejärel käsk ASETEKST."]

{"sheet":"Väljaminekud","index":1,"n_rows":33,"n_cols":8,"rows_kept":33,"merged":[[0,5,0,7],[1,1,1,7],[2,6,2,7]]}
["Sisestage selle töölehe vastavatesse tabelitesse eri kategooriate lõikes Prognoos ja Tegelik kulud. Kogukulud arvutatakse automaatselt. Töölehe kasutamise kohta käivad kasulikud juhised leiate selle veeru lahtritest. Liikuge alustamiseks noolega alla."]
["Selle ja muude töölehtede pealkirja kohandamiseks sisestage paremasse lahtrisse Ürituse nimi.","Ürituse eelarve \nÜrituse nimi"]
["Lahtris G3 on kulud silt.",{"$nulls":5}," Kulud"]
["Lahtris G4 on prognoos silt, tegelik silt on lahtris H4.",{"$nulls":5},"Prognoos","Tegelik"]
["Kogukulu silt on parempoolses lahtris. Prognoos Kogukulu arvutatakse automaatselt lahtris G5. Tegelikke Kogukulu ja andmeriba, millel on kujutatud tegelik Kogukulu uuendatakse automaatselt lahtris H5. Järgmine juhis on toodud lahtris A7.","Kogukulu",{"$nulls":4},{"$f":"SUM(C12,C20,C26,C33,G12,G20,G25)","v":{"v":1145,"d":"1,145.00 €"}},{"$f":"SUM(D12,D20,D26,D33,H12,H20,H25)","v":{"v":395,"d":"395.00 €"}}]
[]
["Sisestage Koha Kulud parempoolsest lahtrist algavasse tabelisse ja Suupistete Kulud lahtrist F7 algavasse tabelisse. Järgmised juhised on toodud lahtris A14.","Koha","Prognoos","Tegelik",null,"Suupistete Kulud","Prognoos","Tegelik"]
[null,"Ruumi rent",{"v":500,"d":"500.00 €"},{"v":250,"d":"250.00 €"},null,"Söök"]
[null,"Palgatud personal",{"v":400,"d":"400.00 €"},{"v":50,"d":"50.00 €"},null,"Joogid"]
[null,"Varustus",{"$nulls":3},"Laudlinad"]
[null,"Lauad ja toolid",{"$nulls":3},"Personal ja lisatasud"]
[null,"Kokku",{"$f":"SUBTOTAL(109,KohaKulud[Prognoos])","v":{"v":900,"d":"900.00 €"}},{"$f":"SUBTOTAL(109,KohaKulud[Tegelik])","v":{"v":300,"d":"300.00 €"}},null,"Kokku",{"$f":"SUBTOTAL(109,SuupisteteKulud[Prognoos])","v":{"v":0,"d":"0.00 €"}},{"$f":"SUBTOTAL(109,SuupisteteKulud[Tegelik])","v":{"v":0,"d":"0.00 €"}}]
[]
["Sisestage tabelisse kaunistustekulud, alustades parempoolsest lahtrist ja programmikulud, alustades lahtrist F14. Järgmised juhised on toodud lahtris A22.","Kaunistused","Prognoos","Tegelik",null,"Programm","Prognoos","Tegelik"]
[null,"Lilled",{"v":200,"d":"200.00 €"},{"v":50,"d":"50.00 €"},null,"Esinejad"]
[null,"Küünlad",{"$nulls":3},"Õhtujuht"]
[null,"Valgustus",{"$nulls":3},"Reisimine"]
[null,"Õhupallid",{"$nulls":3},"Hotell"]
[null,"Ühekordseks kasutamiseks mõeldud tarvikud",{"$nulls":3},"Muu"]
[null,"Kokku",{"$f":"SUBTOTAL(109,KaunistusteKulud[Prognoos])","v":{"v":200,"d":"200.00 €"}},{"$f":"SUBTOTAL(109,KaunistusteKulud[Tegelik])","v":{"v":50,"d":"50.00 €"}},null,"Kokku",{"$f":"SUBTOTAL(109,programmikulud[Prognoos])","v":{"v":0,"d":"0.00 €"}},{"$f":"SUBTOTAL(109,programmikulud[Tegelik])","v":{"v":0,"d":"0.00 €"}}]
[]
["Sisestage Reklaamikulud parempoolsest lahtrist algavasse tabelisse ja Auhinnakulud lahtrist F22 algavasse tabelisse. Järgmine juhis on lahtris A28.","Ettevalmistused","Prognoos","Tegelik",null,"Hinnad","Prognoos","Tegelik"]
[null,"Kutsete kujundamine",{"v":45,"d":"45.00 €"},{"v":45,"d":"45.00 €"},null,"Lindid/plakatid"]
[null,"Pildistamisteenus / fotode ilmutamine",{"$nulls":3},"Kingitused"]
[null,"Postikulu",{"$nulls":3},"Kokku",{"$f":"SUBTOTAL(109,Auhinnakulud[Prognoos])","v":{"v":0,"d":"0.00 €"}},{"$f":"SUBTOTAL(109,Auhinnakulud[Tegelik])","v":{"v":0,"d":"0.00 €"}}]
[null,"Kokku",{"$f":"SUBTOTAL(109,Reklaamikulud[Prognoos])","v":{"v":45,"d":"45.00 €"}},{"$f":"SUBTOTAL(109,Reklaamikulud[Tegelik])","v":{"v":45,"d":"45.00 €"}}]
[]
["Sisestage muud kulud parempoolsest lahtrist algavasse tabelisse.","Muud kulud","Prognoos","Tegelik"]
[null,"Telefon"]
[null,"Transport"]
[null,"Kirjatarbed"]
[null,"Faksiteenused"]
[null,"Kokku",{"$f":"SUBTOTAL(109,MuudKulud[Prognoos])","v":{"v":0,"d":"0.00 €"}},{"$f":"SUBTOTAL(109,MuudKulud[Tegelik])","v":{"v":0,"d":"0.00 €"}}]

{"sheet":"Sissetulekud","index":2,"n_rows":30,"n_cols":7,"rows_kept":30,"merged":[[1,1,1,6],[2,5,2,6]]}
["Sisestage selle töölehe vastavatesse tabelitesse eri kategooriate lõikes prognoos ja tegelik tulu. Kogutulu arvutatakse automaatselt. Töölehe kasutamise kohta käivad kasulikud juhised leiate selle veeru lahtritest. Liikuge alustamiseks noolega alla."]
["Parempoolses lahtris värskendatakse sündmuse nimi automaatselt.",{"$f":"Väljaminekud!B2","v":"Ürituse eelarve \nÜrituse nimi"}]
["Lahtris F3 on sissetulekud silt.",{"$nulls":4}," Sissetulekud"]
["Lahtris F4 on prognoos tulu silt, tegelik tulu silt on lahtris G4.",{"$nulls":4},"Prognoos","Tegelik"]
["Parempoolses lahtris on Sissetulekud kokku. Prognoositud kokku arvutatakse automaatselt lahtris F5. Tegelik kokku ja andmeriba, millel on kujutatud Tegelik kokku, uuendatakse automaatselt lahtris G5.","Sissetulekud kokku",{"$nulls":3},{"$f":"SUM(Piletid[[#Totals],[Prognoositud kokku]],ReklaamidVoldikus[[#Totals],[Prognoositud kokku]],EksponendidJaTarnijad[[#Totals],[Prognoositud kokku]],KaubaMüük[[#Totals],[Prognoositud kokku]])","v":{"v":1936,"d":"1,936.00 €"}},{"$f":"SUM(Piletid[[#Totals],[Tegelik kokku]],ReklaamidVoldikus[[#Totals],[Tegelik kokku]],EksponendidJaTarnijad[[#Totals],[Tegelik kokku]],KaubaMüük[[#Totals],[Tegelik kokku]])","v":{"v":1831,"d":"1,831.00 €"}}]
["Paremal asuvas lahtris kuvatakse osavõtu silt.","Piletid"]
["Sisestage tabelisse prognoos ja tegelik külastajate arv koos piletid, alustades parempoosest lahtrist. Osavõtult saadud prognoos ja tegelik tulu arvutatakse automaatselt. Järgmine juhis on lahtris A12.","Prognoos","Tegelik","Tüüp","Hind","Prognoositud kokku","Tegelik kokku"]
[null,300,278,"Täiskasvanud @",{"v":5,"d":"5.00 €"},{"$f":"B8*E8","v":{"v":1500,"d":"1,500.00 €"}},{"$f":"C8*E8","v":{"v":1390,"d":"1,390.00 €"}}]
[null,197,195,"Lapsed @",{"v":2,"d":"2.00 €"},{"$f":"B9*E9","v":{"v":394,"d":"394.00 €"}},{"$f":"C9*E9","v":{"v":390,"d":"390.00 €"}}]
[null,42,51,"Muu @",{"v":1,"d":"1.00 €"},{"v":42,"d":"42.00 €"},{"v":51,"d":"51.00 €"}]
[null," ",{"$nulls":3},{"$f":"SUBTOTAL(109,Piletid[Prognoositud kokku])","v":{"v":1936,"d":"1,936.00 €"}},{"$f":"SUBTOTAL(109,Piletid[Tegelik kokku])","v":{"v":1831,"d":"1,831.00 €"}}]
["Paremal asuvas lahtris kuvatakse programmi reklaamid silt.","Programmi reklaamid"]
["Sisestage tabelisse prognoos ja tegelik reklaamide arv koos hindadega, alustades parempoosest lahtrist. Prognoos ja tegelik programmi reklaamid arvutatakse automaatselt. Järgmine juhis on lahtris A18.","Prognoos","Tegelik","Tüüp","Hind","Prognoositud kokku","Tegelik kokku"]
[{"$nulls":3},"Plank @",null,{"$f":"B14*E14","v":{"v":0,"d":"0.00 €"}},{"$f":"C14*E14","v":{"v":0,"d":"0.00 €"}}]
[{"$nulls":3},"Pool lehekülge @",null,{"$f":"B15*E15","v":{"v":0,"d":"0.00 €"}},{"$f":"C15*E15","v":{"v":0,"d":"0.00 €"}}]
[{"$nulls":3},"Veerand lehekülge @",null,{"v":0,"d":"0.00 €"},{"v":0,"d":"0.00 €"}]
[null," ",{"$nulls":3},{"$f":"SUBTOTAL(109,ReklaamidVoldikus[Prognoositud kokku])","v":{"v":0,"d":"0.00 €"}},{"$f":"SUBTOTAL(109,ReklaamidVoldikus[Tegelik kokku])","v":{"v":0,"d":"0.00 €"}}]
["Paremal asuvas lahtris kuvatakse silt Eksponendid või müüjad.","EKSPONENDID/MÜÜJAD"]
["Sisestage tabelisse prognoos ja tegelik eksponentide arv koos näituseboksi hindadega, alustades parempoosest lahtrist. Prognoos ja tegelik tulu arvutatakse automaatselt. Järgmine juhis on lahtris A24.","Prognoos","Tegelik","Tüüp","Hind","Prognoositud kokku","Tegelik kokku"]
[{"$nulls":3},"Suured näituseboksid @",null,{"$f":"B20*E20","v":{"v":0,"d":"0.00 €"}},{"$f":"C20*E20","v":{"v":0,"d":"0.00 €"}}]
[{"$nulls":3},"Keskmised näituseboksid @",null,{"$f":"B21*E21","v":{"v":0,"d":"0.00 €"}},{"$f":"C21*E21","v":{"v":0,"d":"0.00 €"}}]
[{"$nulls":3},"Väikesed näituseboksid @",null,{"v":0,"d":"0.00 €"},{"v":0,"d":"0.00 €"}]
[null," ",{"$nulls":3},{"$f":"SUBTOTAL(109,EksponendidJaTarnijad[Prognoositud kokku])","v":{"v":0,"d":"0.00 €"}},{"$f":"SUBTOTAL(109,EksponendidJaTarnijad[Tegelik kokku])","v":{"v":0,"d":"0.00 €"}}]
["Paremal asuvas lahtris kuvatakse silt Kaupade müük.","Kaupade müük"]
["Sisestage tabelisse prognoos ja tegelik müüdud kaupade arv koos hindadega, alustades parempoosest lahtrist. Prognoos ja tegelik tulu arvutatakse automaatselt.","Prognoos","Tegelik","Tüüp","Hind","Prognoositud kokku","Tegelik kokku"]
[{"$nulls":3},"Tooted @",null,{"$f":"B26*E26","v":{"v":0,"d":"0.00 €"}},{"$f":"C26*E26","v":{"v":0,"d":"0.00 €"}}]
[{"$nulls":3},"Tooted @",null,{"$f":"B27*E27","v":{"v":0,"d":"0.00 €"}},{"$f":"C27*E27","v":{"v":0,"d":"0.00 €"}}]
[{"$nulls":3},"Tooted @",null,{"v":0,"d":"0.00 €"},{"v":0,"d":"0.00 €"}]
[{"$nulls":3},"Tooted @",null,{"v":0,"d":"0.00 €"},{"v":0,"d":"0.00 €"}]
[null," ",{"$nulls":3},{"$f":"SUBTOTAL(109,KaubaMüük[Prognoositud kokku])","v":{"v":0,"d":"0.00 €"}},{"$f":"SUBTOTAL(109,KaubaMüük[Tegelik kokku])","v":{"v":0,"d":"0.00 €"}}]

{"sheet":"Kokkuvõte","index":3,"n_rows":9,"n_cols":4,"rows_kept":9,"merged":[[1,1,1,3],[2,2,2,3],[8,1,8,4],[9,1,9,3]]}
["Kasumi ja kahjumi kokkuvõte ning Kogutulu ja kogukulude diagrammi uuendatakse automaatselt sellel töölehel. Töölehe kasutamise kohta käivad kasulikud juhised leiate selle veeru lahtritest. Liikuge alustamiseks noolega alla."]
["Parempoolses lahtris värskendatakse Ürituse nimi automaatselt.",{"$f":"Väljaminekud!B2","v":"Ürituse eelarve \nÜrituse nimi"}]
["Kasumi-kahjumi kokkuvõte silt on lahtris C3. Järgmised juhised on toodud lahtris A5.",null,"Kasumi-kahjumi kokkuvõte"]
[]
["Parempoolsest lahtrist algavat koguväärtustega tabelit värskendatakse automaatselt. Järgmised juhised on toodud lahtris A9.","Kokku","Prognoos","Tegelik"]
[null,"Kogutulu",{"$f":"Sissetulekud!F5","v":{"v":1936,"d":"1,936.00 €"}},{"$f":"Sissetulekud!G5","v":{"v":1831,"d":"1,831.00 €"}}]
[null,"Kogukulud",{"$f":"Väljaminekud!G5","v":{"v":1145,"d":"1,145.00 €"}},{"$f":"Väljaminekud!H5","v":{"v":395,"d":"395.00 €"}}]
[null,"Kogukasum (või -kahjum)",{"$f":"C6-C7","v":{"v":791,"d":"791.00 €"}},{"$f":"D6-D7","v":{"v":1436,"d":"1,436.00 €"}}]
["Kobartulpdiagramm, kus on kujutatud prognoos ja tegelik Kogutulu ja Kogukulud kogusummade võrdlus, asub parempoolses lahtris.","Kobartulpdiagramm, kus on kujutatud prognoos ja tegelik Kogutulu ja Kogukulud kogusummade võrdlus, asub selles lahtris."]